bitfinex/quotes_SOLUSD_20240624
["timestamp","ask_amount","ask_price","bid_price","bid_amount"]
[1719253803179,30.36,128.9,128.73,106.6355]
[1719253803180,2.6726,128.91,128.85,19.4018]
[1719253803391,2.6726,128.91,128.84,7.7611]
[1719253803686,2.6726,128.91,128.83,7.762]
[1719253803906,2.6726,128.91,128.85,19.4022]
[1719253804064,2.6726,128.91,128.87,7.7593]
[1719253804254,2.6726,128.91,128.87,27.1572]
[1719253804454,2.6726,128.99,128.88,7.759]
[1719253804676,2.6726,128.99,128.87,19.3981]
[1719253804986,2.6726,128.99,128.87,27.1573]
[1719253805181,8.90520412,128.99,128.87,27.1573]
[1719253805557,8.90520412,128.99,128.87,19.3981]
[1719253805954,8.90520412,128.99,128.89,7.7584]
[1719253806178,8.90520412,128.99,128.84,19.403]
[1719253806483,12.15997988,128.99,128.87,7.7597]
[1719253806656,12.15997988,128.99,128.89,7.7585]
[1719253807080,8.90520412,128.99,128.83,100.0]
[1719253807380,8.90520412,128.99,128.92,7.7565]
[1719253807681,8.90520412,128.99,128.9,19.3943]
[1719253808065,8.90520412,128.99,128.9,27.1522]
[1719253808265,8.90520412,128.99,128.88,7.7586]
[1719253808466,30.53,128.98,128.85,7.7608]
[1719253808688,30.53,128.98,128.84,31.034841]
[1719253808689,2.6726,128.97,128.84,31.034841]
[1719253808901,2.6726,128.93,128.81,19.4072]
[1719253809196,0.17,128.92,128.81,27.1701]
[1719253809486,0.34,128.92,128.81,19.4072]
[1719253809867,0.34,128.92,128.8,7.7638]
[1719253810088,30.36,128.9,128.78,27.1772]
[1719253810263,30.36,128.9,128.76,2.35830674]
[1719253810264,0.34,128.89,128.76,2.35830674]
[1719253810689,10.432,128.88,128.76,2.35830674]
[1719253810983,30.36,128.86,128.76,2.35830674]
[1719253811295,0.34,128.85,128.76,2.35830674]
[1719253811584,2.6726,128.81,128.76,2.35830674]
[1719253812894,2.6726,128.81,128.74,7.7674]
[1719253813391,2.6726,128.81,128.71,7.7691]
[1719253813577,2.6726,128.81,128.72,7.7685]
[1719253813886,2.6726,128.81,128.73,19.4194]
[1719253814099,2.6726,128.81,128.71,62.146]
[1719253814276,40.41,128.94,128.8,7.7639]
[1719253814277,2.6726,128.86,128.8,7.7639]
[1719253814477,2.6726,128.86,128.74,29.8777]
[1719253814690,2.6726,128.86,128.74,6.5777]
[1719253814876,2.6726,128.86,128.75,27.1837]
[1719253815379,2.6726,128.86,128.71,38.846]
[1719253815380,30.41,128.85,128.72,27.1901]
[1719253815780,0.17,128.84,128.74,19.4179]
[1719253816089,30.41,128.85,128.74,19.4179]
[1719253816489,30.41,128.85,128.76,19.4152]
[1719253816671,3.0126,128.86,128.76,19.4152]
[1719253816872,2.6726,128.86,128.77,7.7652]
[1719253817078,2.6726,128.86,128.76,19.4152]
[1719253817288,0.34,128.85,128.74,7.7673]
[1719253817506,0.17,128.85,128.75,7.7667]
[1719253817792,2.6726,128.86,128.76,19.4153]
[1719253817990,2.6726,128.86,128.76,27.1815]
[1719253818197,2.6726,128.86,128.78,19.4126]
[1719253818389,2.6726,128.86,128.79,7.7641]
[1719253818591,2.6726,128.86,128.75,19.4162]
[1719253818891,2.6726,128.86,128.74,68.5817]
[1719253818892,2.6726,128.86,128.74,7.7674]
[1719253819097,2.6726,128.86,128.73,7.768]
[1719253819272,2.6726,128.86,128.72,19.4209]
[1719253819473,2.6726,128.86,128.73,7.768]
[1719253819675,0.34,128.85,128.73,7.768]
[1719253819870,0.34,128.85,128.74,7.7675]
[1719253820404,0.34,128.85,128.73,7.7679]
[1719253820595,2.6726,128.86,128.74,23.3]
[1719253820795,2.6726,128.86,128.78,27.1769]
[1719253820993,2.6726,128.86,128.78,27.1773]
[1719253821305,2.6726,128.86,128.75,19.4162]
[1719253821494,2.6726,128.86,128.77,7.7657]
[1719253821706,2.6726,128.86,128.78,7.7649]
[1719253821913,2.6726,128.86,128.76,38.8303]
[1719253822397,2.6726,128.86,128.79,19.4108]
[1719253822585,2.6726,128.86,128.77,7.7652]
[1719253822897,2.6726,128.9,128.81,7.7629]
[1719253823098,2.6726,128.9,128.8,19.4096]
[1719253823288,2.6726,128.9,128.82,19.4062]
[1719253823496,2.6726,128.9,128.83,7.7617]
[1719253823689,2.6726,128.9,128.8,7.7635]
[1719253823898,2.6726,128.9,128.81,7.7631]
[1719253824201,2.6726,128.9,128.8,7.7637]
[1719253824599,2.6726,128.94,128.85,7.7604]
[1719253824798,2.6726,128.94,128.81,23.47]
[1719253825001,2.6726,128.94,128.89,7.7581]
[1719253825209,2.6726,128.99,128.9,7.7579]
[1719253825407,2.6726,128.99,128.89,27.1537]
[1719253825601,2.6726,128.99,128.91,7.7573]
[1719253825778,2.6726,128.99,128.93,7.7559]
[1719253825982,31.052341,129.01,128.86,29.7185]
[1719253826183,31.052341,129.01,128.93,7.7561]
[1719253826378,31.052341,129.01,128.87,0.34]
[1719253826685,61.462341,129.01,128.9,7.7575]
[1719253827181,61.462341,129.01,128.86,25.8186]
[1719253827383,61.462341,129.01,128.88,7.7589]
[1719253827696,61.462341,129.01,128.88,19.3966]
[1719253828095,30.41,129.01,128.88,27.1553]
[1719253828603,30.41,129.01,128.89,7.7584]
[1719253828811,0.17,129.0,128.88,19.3966]
[1719253829104,30.41,128.97,128.85,19.4013]
[1719253829292,2.6726,128.96,128.85,7.7607]
[1719253829489,2.6726,128.96,128.82,63.41830832]
[1719253829705,2.6726,128.96,128.89,7.7585]
[1719253830007,2.6726,128.99,128.83,2.35702535]
[1719253830305,0.17,128.98,128.83,21.76182535]
[1719253830484,30.41,128.95,128.83,19.4048]
[1719253830681,30.41,128.95,128.85,19.4019]
[1719253831210,30.41,128.95,128.85,27.1622]
[1719253831387,30.41,128.95,128.86,7.7602]
[1719253831592,30.41,128.95,128.87,7.7593]
[1719253831793,30.41,128.95,128.85,27.1627]
[1719253831999,30.41,128.95,128.86,7.7602]
[1719253832210,30.41,128.95,128.85,19.4019]
[1719253832396,30.41,128.95,128.84,7.7609]
[1719253832397,30.41,128.95,128.83,7.7619]
[1719253832706,0.17,128.94,128.84,7.7613]
[1719253832891,0.34,128.94,128.84,7.7613]
[1719253833511,0.34,128.94,128.79,23.3]
[1719253833512,2.6726,128.93,128.79,19.4106]
[1719253833725,30.41,128.91,128.79,19.4106]
[1719253834004,30.41,128.91,128.81,7.7628]
[1719253834203,2.6726,128.93,128.83,7.7621]
[1719253834411,0.17,128.92,128.81,19.4075]
[1719253834613,30.38,128.92,128.81,19.4075]
[1719253835404,30.38,128.92,128.83,19.4041]
[1719253835596,30.38,128.92,128.83,27.166]
[1719253836001,30.38,128.92,128.83,19.4041]
[1719253836186,30.38,128.92,128.83,27.1658]
[1719253836388,8.76240194,128.93,128.85,7.7609]
[1719253836594,8.76240194,128.93,128.85,19.4014]
[1719253836813,2.6726,128.93,128.85,19.4014]
[1719253837011,2.6726,128.93,128.87,7.7597]
[1719253837215,2.6726,128.93,128.87,19.3987]
[1719253837403,2.6726,128.99,128.89,7.758]
[1719253837588,2.6726,128.99,128.87,27.1579]
[1719253838417,8.81902709,128.99,128.87,27.1579]
[1719253838716,8.81902709,128.99,128.92,7.7567]
[1719253838717,2.6726,128.99,128.92,7.7567]
[1719253838905,30.38,129.06,128.86,45.8771]
[1719253838906,2.6726,129.05,128.94,7.7555]
[1719253839109,2.6726,129.05,128.92,7.7566]
[1719253839410,2.6726,129.05,128.94,7.7551]
[1719253839627,2.6726,129.05,128.95,7.7543]
[1719253839920,30.38,129.02,128.92,7.7566]
[1719253840103,30.38,129.02,128.91,7.7572]
[1719253840305,30.38,129.02,128.91,7.7573]
[1719253840500,30.38,129.02,128.87,23.3]
[1719253840501,30.38,129.02,128.87,19.3984]
[1719253841005,30.38,128.98,128.87,27.1577]
[1719253841199,30.38,128.98,128.84,19.4028]
[1719253841497,30.38,128.94,128.83,7.762]
[1719253841903,0.34,128.93,128.78,19.4117]
[1719253842094,0.34,128.93,128.75,23.3]
[1719253842292,7.7567,128.92,128.75,23.3]
[1719253842517,30.38,128.9,128.77,19.4135]
[1719253842713,30.39,128.9,128.81,7.7628]
[1719253842891,60.78,128.94,128.76,46.6]
[1719253843095,0.34,128.93,128.81,19.4075]
[1719253843600,2.6726,128.92,128.81,19.4075]
[1719253843827,2.6726,128.92,128.77,27.1792]
[1719253843828,30.39,128.89,128.77,27.1792]
[1719253844020,30.39,128.89,128.76,7.7663]
[1719253844318,0.34,128.88,128.76,7.7663]
[1719253844512,0.34,128.88,128.74,19.4181]
[1719253844897,0.34,128.88,128.76,7.7663]
[1719253845222,0.34,128.88,128.72,22.3927]
[1719253845400,30.39,128.85,128.75,7.7668]
[1719253845713,0.34,128.86,128.75,7.7668]
[1719253845921,0.17,128.85,128.75,7.7668]
[1719253846116,0.17,128.87,128.75,7.7668]
[1719253846421,0.34,128.88,128.75,7.7668]
[1719253846626,8.0993,128.88,128.74,7.7675]
[1719253846794,30.39,128.85,128.73,19.4199]
[1719253846990,2.6726,128.83,128.69,19.4258]
[1719253847197,30.39,128.81,128.69,19.4258]
[1719253847496,0.17,128.8,128.71,19.4228]
[1719253847711,30.39,128.81,128.71,19.4228]
[1719253847913,30.39,128.81,128.73,7.7681]
[1719253848208,30.39,128.81,128.73,19.4199]
[1719253848412,2.6726,128.83,128.75,7.7669]
[1719253848607,2.6726,128.83,128.73,19.4199]
[1719253848918,2.6726,128.83,128.68,62.1532]
[1719253849099,2.6726,128.83,128.71,38.8448]
[1719253849302,2.6726,128.83,128.74,27.1852]
[1719253849613,2.6726,128.83,128.74,19.4182]
[1719253850217,2.6726,128.83,128.74,27.1856]
[1719253850711,2.6726,128.83,128.7,19.4239]
[1719253850906,2.6726,128.83,128.7,27.1934]
[1719253850907,30.39,128.81,128.7,27.1934]
[1719253851100,0.34,128.8,128.7,27.1934]
[1719253851295,0.34,128.8,128.71,7.7693]
[1719253851502,0.34,128.8,128.67,19.4293]
[1719253851913,0.34,128.8,128.67,27.2006]
[1719253852120,30.39,128.77,128.67,19.4293]
[1719253852423,0.34,128.76,128.66,7.7723]
[1719253852809,30.39,128.77,128.66,7.7723]
[1719253852810,30.56,128.77,128.66,19.4304]
[1719253853014,30.39,128.77,128.62,127.9932527]
[1719253853203,30.39,128.82,128.71,7.7689]
[1719253853413,30.39,128.82,128.71,7.7688]
[1719253853709,30.39,128.82,128.68,27.1979]
[1719253853914,68.5428,128.82,128.68,27.1979]
[1719253854112,60.78,128.82,128.68,19.4268]
[1719253854319,60.78,128.82,128.69,7.7706]
[1719253854511,36.70354194,128.82,128.63,12.36069016]
[1719253854710,36.70354194,128.82,128.75,7.7669]
[1719253854918,36.70354194,128.82,128.67,16.5563]
[1719253854919,36.70354194,128.82,128.74,19.4186]
[1719253855203,36.70354194,128.82,128.71,19.4224]
[1719253855516,36.70354194,128.82,128.68,6.3363]
[1719253855719,6.31354194,128.82,128.69,0.34]
[1719253856016,2.6726,128.83,128.74,27.1856]
[1719253856325,2.6726,128.83,128.71,19.4224]
[1719253856902,8.91685074,128.83,128.72,7.7687]
[1719253857307,0.17,128.82,128.73,7.768]
[1719253857529,8.91685074,128.83,128.74,7.7674]
[1719253857745,8.91685074,128.83,128.73,27.1878]
[1719253857932,8.91685074,128.83,128.74,7.7675]
[1719253858228,30.39,128.8,128.67,19.4288]
[1719253858440,30.39,128.8,128.69,19.4255]
[1719253858733,0.17,128.79,128.69,7.7701]
[1719253858934,0.34,128.79,128.69,7.7701]
[1719253859608,0.34,128.79,128.68,19.4272]
[1719253859810,30.39,128.76,128.65,19.4319]
[1719253860031,0.34,128.75,128.65,19.4319]
[1719253860247,0.34,128.75,128.64,2.36050665]
[1719253861115,2.6726,128.78,128.67,19.429]
[1719253861318,2.6726,128.78,128.69,19.426]
[1719253862345,2.6726,128.78,128.67,7.7716]
[1719253862520,2.6726,128.78,128.67,7.7713]
[1719253862726,2.6726,128.78,128.66,19.43]
[1719253862926,2.6726,128.78,128.63,19.4345]
[1719253863129,30.39,128.75,128.61,31.087365]
[1719253863319,0.34,128.77,128.61,31.087365]
[1719253863320,2.6726,128.69,128.61,31.087365]
[1719253863809,2.6726,128.69,128.61,58.299965]
[1719253864006,2.6726,128.69,128.61,31.087365]
[1719253864211,2.6726,128.69,128.56,38.8899]
[1719253864433,2.6726,128.69,128.6,19.4397]
[1719253864752,2.6726,128.69,128.62,7.7747]
[1719253865040,2.6726,128.69,128.63,7.7741]
[1719253865244,2.6726,128.69,128.59,19.4409]
[1719253865536,0.34,128.68,128.56,27.2231]
[1719253865737,30.39,128.68,128.61,7.7753]
[1719253865948,2.6726,128.69,128.53,100.0]
[1719253866234,2.6726,128.69,128.65,7.773]
[1719253866543,2.6726,128.69,128.64,19.4337]
[1719253866727,2.6726,128.69,128.59,38.8811]
[1719253866917,2.6726,128.69,128.64,7.7734]
[1719253867418,2.6726,128.69,128.63,27.209]
[1719253867622,2.6726,128.69,128.62,7.7746]
[1719253868119,2.6726,128.69,128.6,19.4391]
[1719253868532,2.6726,128.69,128.64,7.7734]
[1719253868841,2.6726,128.69,128.59,62.1805]
[1719253868842,2.6726,128.73,128.65,7.7728]
[1719253869132,2.6726,128.73,128.64,27.2069]
[1719253869518,2.6726,128.73,128.65,7.7729]
[1719253869713,2.6726,128.73,128.64,19.4335]
[1719253869943,2.6726,128.73,128.64,27.2069]
[1719253870237,2.6726,128.73,128.65,7.7726]
[1719253871639,2.6726,128.82,128.78,7.7651]
[1719253871824,2.6726,128.87,128.78,7.7651]
[1719253872018,2.6726,128.87,128.79,27.1743]
[1719253872338,2.6726,128.87,128.79,27.1747]
[1719253872740,2.6726,128.87,128.74,29.5807]
[1719253872741,2.6726,128.87,128.75,7.7663]
[1719253872933,2.6726,128.87,128.77,7.7657]
[1719253873245,2.6726,128.87,128.7,30.0]
[1719253873431,2.6726,128.87,128.71,120.34]
[1719253873635,2.6726,128.93,128.83,19.4041]
[1719253873839,2.6726,128.93,128.86,7.7603]
[1719253874027,46.7,128.99,128.88,7.7591]
[1719253874028,6.28326143,128.97,128.88,7.7591]
[1719253874224,2.6726,128.99,128.87,19.3986]
[1719253874544,2.6726,128.99,128.86,7.7602]
[1719253874735,3.31385717,128.98,128.86,7.7602]
[1719253874931,3.31385717,128.98,128.83,7.7615]
[1719253874932,7.754,128.97,128.83,7.7615]
[1719253875133,30.39,128.96,128.79,45.3252]
[1719253875333,6.70133928,128.97,128.79,38.8223]
[1719253875540,6.70133928,128.97,128.76,70.78]
[1719253875541,30.39,128.95,128.83,19.4051]
[1719253875850,6.70133928,128.98,128.83,19.4051]
[1719253876151,6.70133928,128.98,128.85,19.4014]
[1719253876334,14.45453928,128.98,128.85,19.4014]
[1719253876669,14.45453928,128.98,128.82,27.1689]
[1719253876670,7.7543,128.97,128.82,27.1689]
[1719253876824,77.09,128.95,128.8,2.35757434]
[1719253877021,84.8452,128.95,128.8,2.35757434]
[1719253877336,77.09,128.95,128.8,2.35757434]
[1719253877642,54.4563,128.93,128.79,19.4107]
[1719253877946,0.34,128.92,128.79,27.1747]
[1719253878143,0.17,128.91,128.79,27.1747]
[1719253878335,30.56,128.91,128.76,19.4156]
[1719253878648,0.17,128.9,128.78,19.4121]
[1719253878848,0.17,128.91,128.75,78.2846]
[1719253879144,0.17,128.91,128.81,7.7633]
[1719253879450,0.17,128.91,128.8,19.4089]
[1719253879742,6.70133928,128.94,128.81,7.7633]
[1719253879963,6.70133928,128.94,128.82,7.7626]
[1719253880126,6.70133928,128.94,128.81,7.7632]
[1719253880326,6.70133928,128.94,128.82,19.4059]
[1719253880529,6.70133928,128.98,128.84,19.4027]
[1719253880754,6.70133928,128.98,128.86,7.7599]
[1719253881340,6.70133928,128.98,128.84,19.4027]
[1719253881936,0.17,128.97,128.84,19.4027]
[1719253882128,6.70133928,128.98,128.86,7.7602]
[1719253882326,12.92810989,128.98,128.87,7.7597]
[1719253882534,2.6726,128.99,128.88,19.3972]
[1719253883854,2.6726,128.99,128.83,0.17]
[1719253883855,8.761421,128.99,128.85,19.4017]
[1719253884053,0.34,128.98,128.85,27.1622]
[1719253884436,0.34,128.98,128.82,19.4058]
[1719253884641,7.7559,128.94,128.8,7.7634]
[1719253884846,30.56,128.95,128.85,7.7605]
[1719253885042,0.34,128.98,128.87,7.7593]
[1719253885440,0.34,128.98,128.86,7.7601]
[1719253885637,0.17,128.98,128.87,7.7596]
[1719253885840,8.761421,128.99,128.9,7.7578]
[1719253886045,8.761421,128.99,128.89,19.3959]
[1719253886250,8.761421,128.99,128.82,54.0238]
[1719253886581,7.755,128.95,128.81,7.7629]
[1719253886854,2.6726,128.97,128.8,21.76617434]
[1719253887027,30.39,128.94,128.8,21.76617434]
[1719253887231,7.9265,128.93,128.8,19.4086]
[1719253887448,0.17,128.92,128.8,19.4086]
[1719253888141,10.43,128.91,128.78,7.7651]
[1719253888343,0.34,128.9,128.77,27.1783]
[1719253888542,0.34,128.9,128.77,19.4132]
[1719253888543,38.488,128.9,128.77,19.4132]
[1719253888741,38.488,128.9,128.77,27.1788]
[1719253889078,77.43,128.9,128.74,19.4132]
[1719253889234,2.6726,128.85,128.71,27.1921]
[1719253889543,0.34,128.84,128.71,27.1921]
[1719253889850,0.34,128.84,128.71,27.192]
[1719253890061,0.34,128.84,128.72,7.7687]
[1719253890395,2.6726,128.85,128.73,19.4199]
[1719253890551,2.6726,128.85,128.7,19.4242]
[1719253890552,0.34,128.84,128.7,19.4242]
[1719253890748,30.39,128.83,128.7,19.4242]
[1719253890970,0.34,128.82,128.7,19.4242]
[1719253891156,0.34,128.82,128.69,7.7701]
[1719253891352,0.34,128.82,128.69,27.1961]
[1719253891558,8.1027,128.82,128.69,19.4257]
[1719253891768,8.1027,128.82,128.69,27.1961]
[1719253891769,0.34,128.82,128.69,27.1961]
[1719253892179,0.34,128.82,128.71,19.4223]
[1719253892357,0.34,128.82,128.71,27.1912]
[1719253892673,8.94429643,128.85,128.73,19.4198]
[1719253892979,8.94429643,128.85,128.76,7.7663]
[1719253893272,8.94429643,128.85,128.75,19.4168]
[1719253893479,2.6726,128.85,128.75,19.4168]
[1719253893671,2.6726,128.85,128.77,7.7653]
[1719253893875,2.6726,128.85,128.73,7.7678]
[1719253894056,2.6726,128.85,128.76,7.7662]
[1719253894375,2.6726,128.85,128.75,7.7665]
[1719253894559,2.6726,128.85,128.76,19.4156]
[1719253895176,2.6726,128.85,128.73,19.4197]
[1719253895385,2.6726,128.85,128.76,7.7662]
[1719253895557,2.6726,128.85,128.72,23.64]
[1719253895558,2.6726,128.85,128.8,7.7638]
[1719253895752,2.6726,128.85,128.79,19.411]
[1719253896073,2.6726,128.85,128.8,7.7637]
[1719253896253,2.6726,128.85,128.79,19.411]
[1719253896455,2.6726,128.85,128.79,27.1753]
[1719253896658,2.6726,128.92,128.79,19.411]
[1719253897576,2.6726,128.92,128.8,7.7638]
[1719253898091,0.34,128.91,128.8,7.7638]
[1719253898573,0.34,128.91,128.81,7.7631]
[1719253898774,0.34,128.91,128.82,7.7627]
[1719253899565,8.90334954,128.92,128.82,7.7627]
[1719253899766,8.90334954,128.92,128.81,27.1713]
[1719253900481,8.90334954,128.92,128.81,19.4081]
[1719253900664,8.90334954,128.92,128.81,27.1712]
[1719253900863,8.90334954,128.92,128.82,7.7625]
[1719253901191,8.90334954,128.92,128.83,7.762]
[1719253901384,2.6726,128.92,128.8,23.3]
[1719253901604,2.6726,128.92,128.86,7.7601]
[1719253901964,2.6726,128.92,128.85,27.1627]
[1719253902181,2.6726,128.92,128.85,19.4019]
[1719253902380,2.6726,128.92,128.83,7.7617]
[1719253902691,2.6726,128.92,128.84,19.4031]
[1719253902861,2.6726,128.92,128.84,27.1644]
[1719253903063,2.6726,128.92,128.79,22.0294]
[1719253903378,2.6726,128.92,128.76,38.8293]
[1719253903568,0.34,128.91,128.8,27.1734]
[1719253904295,2.6726,128.92,128.8,19.4095]
[1719253904500,2.6726,128.92,128.82,7.7623]
[1719253904792,2.6726,128.92,128.81,7.7633]
[1719253904971,2.6726,128.92,128.76,38.8293]
[1719253905172,2.6726,128.92,128.81,19.4074]
[1719253905363,2.6726,128.92,128.82,7.7625]
[1719253905567,2.6726,128.92,128.81,27.1706]
[1719253905766,2.6726,128.92,128.81,19.4074]
[1719253906161,2.6726,128.92,128.81,27.1707]
[1719253906988,2.6726,128.92,128.82,7.7627]
[1719253907176,2.6726,128.92,128.78,27.1774]
[1719253907371,0.34,128.91,128.78,27.1774]
[1719253907593,0.34,128.91,128.78,19.4128]
[1719253907889,2.6726,128.92,128.8,27.1733]
[1719253907890,0.17,128.9,128.8,27.1733]
[1719253908187,0.34,128.91,128.8,27.1735]
[1719253908779,2.6726,128.92,128.8,19.4097]
[1719253909191,0.34,128.91,128.8,19.4097]
[1719253910191,0.34,128.91,128.8,27.1733]
[1719253910400,0.34,128.91,128.8,27.1736]
[1719253910692,2.6726,128.92,128.81,7.7629]
[1719253910870,2.6726,128.92,128.82,7.7625]
[1719253911064,2.6726,128.92,128.8,23.3]
[1719253911286,2.6726,128.99,128.9,7.7579]
[1719253911494,8.10133325,128.98,128.92,7.7562]
[1719253911673,2.6726,128.99,128.91,7.7571]
[1719253911868,2.6726,129.04,128.94,7.7551]
[1719253912071,2.6726,129.04,128.95,7.7547]
[1719253912590,2.6726,129.04,128.97,7.7536]
[1719253912780,2.6726,129.04,128.96,19.3855]
[1719253913375,2.6726,129.04,128.93,19.3896]
[1719253913565,2.6726,129.04,128.91,10.015196]
[1719253913767,2.6726,129.04,128.93,7.7561]
[1719253913984,8.77905186,129.04,128.86,30.39]
[1719253914190,8.77905186,129.04,128.89,19.3952]
[1719253914191,39.16905186,129.04,128.89,19.3952]
[1719253914496,39.16905186,129.04,128.92,7.7562]
[1719253914694,39.16905186,129.04,128.91,19.392]
[1719253914695,0.17,129.03,128.93,7.7559]
[1719253915065,39.16905186,129.04,128.93,19.3897]
[1719253915280,39.16905186,129.04,128.94,7.7555]
[1719253915470,39.16905186,129.04,128.93,27.1456]
[1719253915890,39.16905186,129.04,128.95,7.7547]
[1719253916090,8.77905186,129.04,128.95,7.7547]
[1719253916299,2.6726,129.04,128.96,7.7542]
[1719253916474,2.6726,129.04,128.95,19.3869]
[1719253916795,2.6726,129.04,128.95,27.1418]
[1719253917085,2.6726,129.04,128.97,7.7533]
[1719253917287,2.6726,129.09,128.96,0.17]
[1719253917482,2.6726,129.09,129.0,19.3793]
[1719253917797,2.6726,129.09,128.98,0.17]
[1719253917798,0.8587808,129.11,129.07,7.7476]
[1719253918006,0.8587808,129.11,129.05,19.3723]
[1719253918179,0.8587808,129.11,129.05,27.1211]
[1719253918382,0.8587808,129.11,129.04,7.7495]
[1719253919085,0.8587808,129.11,129.02,27.1264]
[1719253919280,0.8587808,129.11,129.04,7.7495]
[1719253919673,0.8587808,129.11,129.02,27.1262]
[1719253920169,0.8587808,129.11,129.02,19.3759]
[1719253920370,0.8587808,129.11,128.96,106.0101]
[1719253920581,0.8587808,129.11,129.03,19.3739]
[1719253920898,0.8587808,129.11,129.02,7.7502]
[1719253921193,0.8587808,129.11,129.0,19.3789]
[1719253921808,7.7463,129.1,128.97,19.3832]
[1719253922100,0.17,129.1,128.97,19.3832]
[1719253922276,0.17,129.1,128.99,19.3807]
[1719253922470,0.17,129.1,128.94,42.92697443]
[1719253922471,0.8587808,129.11,128.94,42.92697443]
[1719253922667,0.8587808,129.11,129.0,7.7514]
[1719253922890,0.8587808,129.11,128.95,2.35483191]
[1719253923194,0.34,129.1,128.97,19.3836]
[1719253923374,8.0859,129.1,128.97,19.3836]
[1719253923580,2.6726,129.08,128.95,2.35483191]
[1719253923783,0.34,129.07,128.95,10.10933191]
[1719253923976,2.6726,129.08,128.95,2.35483191]
[1719253924179,0.17,129.07,128.95,2.35483191]
[1719253924394,30.39,129.05,128.95,2.35483191]
[1719253924575,0.34,129.07,128.95,2.35483191]
[1719253924576,30.39,129.04,128.95,2.35483191]
[1719253924769,0.17,129.03,128.95,1.04520139]
[1719253924989,7.9201,129.03,128.95,0.00920139]
[1719253925170,7.9201,129.03,128.82,295.80994288]
[1719253925171,30.39,129.0,128.86,27.1601]
[1719253925370,8.0925,128.99,128.86,19.4002]
[1719253925589,0.34,128.99,128.83,19.4044]
[1719253925798,30.39,128.96,128.83,19.4044]
[1719253925995,0.34,128.95,128.8,19.4095]
[1719253926177,30.39,128.96,128.79,30.39]
[1719253926379,2.6634,128.97,128.87,7.7597]
[1719253926581,30.56,128.96,128.82,19.4061]
[1719253926794,30.56,128.96,128.84,19.4032]
[1719253927080,2.6634,128.97,128.89,7.7579]
[1719253927292,2.6634,128.97,128.88,27.1557]
[1719253927593,2.6634,128.97,128.88,19.3971]
[1719253928102,2.6634,128.97,128.85,27.1622]
[1719253928400,2.6634,128.97,128.86,7.7598]
[1719253928906,2.6634,128.97,128.89,19.395]
[1719253929105,8.34160906,129.02,128.92,7.7566]
[1719253929106,2.92954455,129.02,128.92,7.7566]
[1719253929417,2.6634,129.02,128.94,7.7554]
[1719253929578,2.6634,129.02,128.9,7.7576]
[1719253929780,2.6634,129.02,128.91,7.7573]
[1719253930094,12.09252907,129.02,128.88,7.759]
[1719253930297,4.34172907,129.02,128.9,7.7578]
[1719253930476,4.34172907,129.02,128.84,45.2774]
[1719253930677,4.34172907,129.02,128.91,19.3924]
[1719253930994,4.34172907,129.02,128.85,23.3]
[1719253931175,4.34172907,129.02,128.91,19.3924]
[1719253931575,2.6634,129.02,128.91,19.3924]
[1719253931905,2.6634,129.02,128.97,7.7537]
[1719253932091,2.6634,129.1,128.98,7.7531]
[1719253932490,2.36147959,129.09,128.98,7.7531]